Workbook

Sheet 注文書
B1: ご 注 文 書 年 月 日
B2: お 名 前 （WM・Ｍ・ＡＧ・ＧＡＧ） | H2: ポジション選択⇒ | I2: WM | J2: グループ名
B3: 品 名 （軽減税率） | C3: 本体価格 （税抜） | D3: ポジション 価格（税抜） | E3: 数量 | F3: 合 計 （税抜） | H3: 品 名 （標準税率） | I3: 本体価格 （税抜） | J3: ポジション 価格（税抜） | K3: 数量 | L3: 合 計 （税抜）
D4: ① | E4: ② | F4: ①×② | J4: ⑤ | K4: ⑥ | L4: ⑤×⑥
B5: エイジレスパワー | C5: 17000 | D5: =ROUND(C5*$F$28,0) -> 13600 | F5: =IF(D5*E5<>0,D5*E5,"") ->  | H5: ｼﾙｷｰﾀﾞｲﾔﾓﾝﾄﾞ ｳｫｯｼﾝｸﾞ | I5: 12000 | J5: =ROUND(I5*$F$28,0) -> 9600 | L5: =IF(J5*K5<>0,J5*K5,"") -> 
B6: ＳＯＤサプライズ | C6: 21000 | D6: =ROUND(C6*$F$28,0) -> 16800 | F6: =IF(D6*E6<>0,D6*E6,"") ->  | H6: ｼﾙｷｰﾀﾞｲﾔﾓﾝﾄﾞ ｴｯｾﾝｽ | I6: 14000 | J6: =ROUND(I6*$F$28,0) -> 11200 | L6: =IF(J6*K6<>0,J6*K6,"") -> 
B7: 納豆芽胞 | C7: 12000 | D7: 9600 | H7: ｼﾙｷｰﾀﾞｲﾔﾓﾝﾄﾞ ｸﾘｰﾑ | I7: 10000 | J7: 8000
B8: エンジェルウィング・エフェクト | C8: 18000 | D8: 14400 | H8: ｼﾙｷｰﾀﾞｲﾔﾓﾝﾄﾞ ｼﾞｪﾙ | I8: 12000 | J8: =ROUND(I8*$F$28,0) -> 9600
B9: ＳＨＩＫＩＳＯ・色素 | C9: 18000 | D9: 14400 | F9: =IF(D9*E9<>0,D9*E9,"") ->  | H9: ミネラックス パック | I9: 10000 | J9: 8000 | L9: =IF(J9*K9<>0,J9*K9,"") -> 
B10: 南極のオメガ | C10: 17000 | D10: 13600 | F10: =IF(D10*E10<>0,D10*E10,"") ->  | H10: ＧシャンプーＮＦ | I10: 5800 | J10: 4640 | L10: =IF(J10*K10<>0,J10*K10,"") -> 
B11: ＫＯＵＳＯ ＡＬＩＶＥ | C11: 16000 | D11: 12800 | F11: =IF(D11*E11<>0,D11*E11,"") ->  | H11: ＧコンディショナーＮＦ | I11: 5800 | J11: 4640 | L11: =IF(J11*K11<>0,J11*K11,"") -> 
B12: コツガスピード | C12: 9000 | D12: 7200 | F12: =IF(D12*E12<>0,D12*E12,"") ->  | H12: ムースウォッシングＮＦ | I12: 8000 | J12: 6400
B13: ＢＩＯＸＧ－３１０ | C13: 23000 | D13: 18400 | H13: セレブＵＶクリーム | I13: 5600 | J13: 4480
B14: 遠赤焙煎ルイボスティー | C14: 8700 | D14: 6960 | H14: イオンウォーター | I14: 7500 | J14: 6000
B15: ナノルチン | C15: 12000 | D15: 9600 | H15: ＢＡＣフレッシュナー | I15: 10000 | J15: 8000
B16: ｴｲｼﾞﾚｽﾊﾟﾜｰお試しﾊﾟｯｸ | C16: 1750 | D16: 1750 | H16: ＡＲエッセンス | I16: 10000 | J16: 8000
H17: ミネラルソープ | I17: 4000 | J17: 3200
D18: 0 | H18: ﾋﾟｭｱＦﾌｧﾝﾃﾞｰｼｮﾝ①ｲｴﾛｰ | I18: 5100 | J18: 4080
B19: ８％課税対象合計（税抜） | E19: ③ | F19: =SUM(F5:F18) -> 0 | H19: ﾋﾟｭｱＦﾌｧﾝﾃﾞｰｼｮﾝ②ﾍﾞｰｼﾞｭ | I19: 4500 | J19: 3600
B20: ８％消費税 （③×８％） | E20: ④ | F20: =ROUND(SUM(F5:F18)*0.08,0) -> 0 | H20: ﾋﾟｭｱＦﾌｧﾝﾃﾞｰｼｮﾝ③ﾅﾁｭﾗﾙ | I20: 4500 | J20: 3600
B21: ﾐﾈﾗｯｸｽ ﾊﾟｰﾌｪｸﾄｸﾘｰﾅｰ | C21: 5300 | D21: =ROUND(C21*$F$28,0) -> 4240 | F21: =IF(D21*E21<>0,D21*E21,"") ->  | H21: ﾋﾟｭｱＦﾌｧﾝﾃﾞｰｼｮﾝ④ｵｰｸﾙ | I21: 4500 | J21: 3600
B22: もりの泉 | C22: 3900 | D22: 3120 | F22: =IF(D22*E22<>0,D22*E22,"") ->  | H22: ボディークリーム | I22: 16000 | J22: 12800
B23: ハ元気 | C23: 3000 | D23: 2400 | H23: マッサージローション | I23: 17000 | J23: 13600
B24: 交換ｶｰﾄﾘｯｼﾞIEC-12000 | C24: 10000 | D24: =C24 -> 10000 | H24: レフィル①②③ | I24: 3800 | J24: 3040
B25: 備品 | D25: =C25 -> 0 | H25: 10%課税対象小計２ | K25: ⑧ | L25: =SUM(L5:L24) -> 0
D26: 0 | H26: １０％課税対象合計（税抜） | K26: ⑦+⑧ | L26: =F27+L25 -> 0
B27: 10%課税対象小計１ | E27: ⑦ | F27: =SUM(F21:F26) -> 0 | H27: １０％消費税 （⑦+⑧）×１０％ | K27: ⑨ | L27: =ROUND(L26*0.1,0) -> 0
B28: 備考 | F28: =IF($I$2="GAG",0.47,IF($I$2="AG",0.57,IF($I$2="M",0.7,IF($I$2="WM",0.8,IF($I$2="定価",1,0))))) -> 0.8 | H28: 総合計 ③＋④＋⑦＋⑧+⑨ | J28: =F19+F20+L26+L27 -> 0 | L28: WX-0396
B29: 株式会社マスタワールド | L29: 2024.04.01
B32: 0 | C32: GAG
B33: 1 | C33: AG
B34: 2 | C34: M
B35: 3 | C35: WM
B36: 4 | C36: 定価
B37: 5
B38: 6
B39: 7
B40: 8
B41: 9
B42: 10
B43: 11
B44: 12
B45: 13
B46: 14
B47: 15
B48: 16
B49: 17
B50: 18
B51: 19
B52: 20
B53: 21
B54: 22
B55: 23
B56: 24
B57: 25
B58: 26
B59: 27
B60: 28
B61: 29

Sheet 計算書
B1: 計算書
B2: ポジション選択 ⇒ | D2: WM | G2: version12 | H2: 2024.04.01
B3: 品 名 （軽減税率） | C3: 消費税率 | D3: 本体価格 （税抜） | E3: 数量 | F3: BV | G3: ポジション 価格（税抜） | H3: 合 計 （税抜）
E4: ① | G4: ② | H4: ①×②
B5: エイジレスパワー | C5: 0.08 | D5: 17000 | F5: =D5*E5 -> 0 | G5: =ROUND(D5*$K$9,0) -> 13600 | H5: =E5*G5 -> 0 | K5: GAG
B6: ＳＯＤサプライズ | C6: 0.08 | D6: 21000 | F6: =D6*E6 -> 0 | G6: 16800 | H6: 0 | K6: AG
B7: 納豆芽胞 | C7: 0.08 | D7: 12000 | F7: 0 | G7: 9600 | H7: 0 | K7: M
B8: エンジェルウィング・エフェクト | C8: 0.08 | D8: 18000 | F8: 0 | G8: 14400 | H8: 0 | K8: WM
B9: ＳＨＩＫＩＳＯ・色素 | C9: 0.08 | D9: 18000 | F9: 0 | G9: 14400 | H9: 0 | K9: =IF($D$2="GAG",0.47,IF($D$2="AG",0.57,IF($D$2="M",0.7,IF($D$2="WM",0.8,IF($D$2="定価",1,0))))) -> 0.8
B10: 南極のオメガ | C10: 0.08 | D10: 17000 | F10: 0 | G10: 13600 | H10: 0
B11: ＫＯＵＳＯ ＡＬＩＶＥ | C11: 0.08 | D11: 16000 | F11: 0 | G11: 12800 | H11: 0 | K11: ＢＶ合計 | L11: =SUM(F5:F64) -> 0
B12: コツガスピード | C12: 0.08 | D12: 9000 | F12: 0 | G12: 7200 | H12: 0
B13: ナノルチン | C13: 0.08 | D13: 12000 | F13: 0 | G13: 9600 | H13: 0
B14: クリア（袋入り・180粒） | C14: 0.08 | D14: 10000 | F14: 0 | G14: 8000 | H14: 0 | K14: ８％課税対象合計（税抜） | L14: =SUM(H5:H19) -> 0
B15: 遠赤焙煎ルイボスティー | C15: 0.08 | D15: 8700 | F15: 0 | G15: 6960 | H15: 0 | K15: １０％課税対象合計（税抜） | L15: =SUM(H20:H79) -> 0
B16: ＢＩＯＸＧ－３１０ | C16: 0.08 | D16: 23000 | F16: 0 | G16: 18400 | H16: 0 | K16: 合計金額 （税抜） | L16: =SUM(L14:L15) -> 0
B17: クリア（袋入り・180粒） | C17: 0.08 | D17: 10000 | F17: 0 | G17: 8000 | H17: 0 | K17: 消費税 ８％ | L17: =ROUND(L14*0.08,0) -> 0
B18: (健康食品金額手入力） | C18: 0.08 | F18: 0 | G18: 0 | H18: 0 | K18: 消費税 １０％ | L18: =ROUND(L15*0.1,0) -> 0
B19: 備品ｴｲｼﾞﾚｽﾊﾟﾜｰお試しパック | C19: 0.08 | D19: 1750 | F19: 0 | G19: =D19 -> 1750 | H19: 0 | K19: 総合計 | L19: =SUM(L16:L18) -> 0
B20: ｼﾙｷｰﾀﾞｲﾔﾓﾝﾄﾞ ｳｫｯｼﾝｸﾞ | C20: 0.1 | D20: 12000 | F20: 0 | G20: 9600 | H20: 0
B21: ｼﾙｷｰﾀﾞｲﾔﾓﾝﾄﾞ ｴｯｾﾝｽ | C21: 0.1 | D21: 14000 | F21: 0 | G21: 11200 | H21: 0
B22: ｼﾙｷｰﾀﾞｲﾔﾓﾝﾄﾞ ｸﾘｰﾑ | C22: 0.1 | D22: 10000 | F22: 0 | G22: 8000 | H22: 0 | K22: 入力するのは 色のセルだけです。
B23: ｼﾙｷｰﾀﾞｲﾔﾓﾝﾄﾞ ｼﾞｪﾙ | C23: 0.1 | D23: 12000 | F23: =D23*E23 -> 0 | G23: 9600 | H23: 0 | K23: 数量入力をクリアするには「数量クリア」ボタンを
B24: ミネラックス パック | C24: 0.1 | D24: 10000 | F24: 0 | G24: 8000 | H24: 0 | K24: クリックしてください。
B25: ＧシャンプーＮＦ | C25: 0.1 | D25: 5800 | F25: 0 | G25: 4640 | H25: 0
B26: ＧコンディショナーＮＦ | C26: 0.1 | D26: 5800 | F26: 0 | G26: 4640 | H26: 0
B27: ムースウォッシングＮＦ | C27: 0.1 | D27: 8000 | F27: 0 | G27: 6400 | H27: 0
B28: セレブＵＶクリーム | C28: 0.1 | D28: 5600 | F28: 0 | G28: 4480 | H28: 0
B29: イオンウォーター | C29: 0.1 | D29: 7500 | F29: 0 | G29: 6000 | H29: 0
B30: ＢＡＣフレッシュナー | C30: 0.1 | D30: 10000 | F30: 0 | G30: 8000 | H30: 0
B31: ＡＲエッセンス | C31: 0.1 | D31: 10000 | F31: 0 | G31: 8000 | H31: 0
B32: ミネラルソープ | C32: 0.1 | D32: 4000 | F32: 0 | G32: 3200 | H32: 0
B33: ﾋﾟｭｱＦﾌｧﾝﾃﾞｰｼｮﾝ①ｲｴﾛｰ | C33: 0.1 | D33: 5100 | F33: 0 | G33: 4080 | H33: 0
B34: ﾋﾟｭｱＦﾌｧﾝﾃﾞｰｼｮﾝ②ﾍﾞｰｼﾞｭ | C34: 0.1 | D34: 4500 | F34: 0 | G34: 3600 | H34: 0
B35: ﾋﾟｭｱＦﾌｧﾝﾃﾞｰｼｮﾝ③ﾅﾁｭﾗﾙ | C35: 0.1 | D35: 4500 | F35: 0 | G35: 3600 | H35: 0
B36: ﾋﾟｭｱＦﾌｧﾝﾃﾞｰｼｮﾝ④ｵｰｸﾙ | C36: 0.1 | D36: 4500 | F36: 0 | G36: 3600 | H36: 0
B37: ボディークリーム | C37: 0.1 | D37: 16000 | F37: 0 | G37: 12800 | H37: 0
B38: マッサージローション | C38: 0.1 | D38: 17000 | F38: 0 | G38: 13600 | H38: 0
B39: レフィル①ピンク | C39: 0.1 | D39: 3800 | F39: 0 | G39: 3040 | H39: 0
B40: レフィル②オークル | C40: 0.1 | D40: 3800 | F40: 0 | G40: 3040 | H40: 0
B41: レフィル③ナチュラル | C41: 0.1 | D41: 3800 | F41: 0 | G41: 3040 | H41: 0
B42: クイーンズケース | C42: 0.1 | D42: 2700 | F42: 0 | G42: 2160 | H42: 0
B43: (化粧品金額手入力） | C43: 0.1 | D43: 31000 | F43: 0 | G43: 24800 | H43: 0
B44: 金箔シート１０枚セット | C44: 0.1 | D44: 6000 | F44: 0 | G44: =D44 -> 6000 | H44: 0
B46: ﾐﾈﾗｯｸｽ ﾊﾟｰﾌｪｸﾄｸﾘｰﾅｰ | C46: 0.1 | D46: 5300 | F46: 0 | G46: =ROUND(D46*$K$9,0) -> 4240 | H46: =E46*G46 -> 0
B47: 調合容器 備品 | C47: 0.1 | D47: 120 | F47: 0 | G47: =D47 -> 120 | H47: 0
B48: もりの泉 | C48: 0.1 | D48: 3900 | F48: 0 | G48: =ROUND(D48*$K$9,0) -> 3120 | H48: 0
B49: ハ元気 | C49: 0.1 | D49: 3000 | F49: 0 | G49: =ROUND(D49*$K$9,0) -> 2400 | H49: 0
B50: エクセル FX | C50: 0.1 | D50: 363000 | F50: =D50*E50 -> 0 | G50: =ROUND(D50*$K$9,0) -> 290400 | H50: 0
B51: エクセル FXファイル | C51: 0.1 | D51: 500 | F51: 0 | G51: =D51 -> 500 | H51: 0
B52: エクセル使用方法ﾗﾐﾈｰﾄ | C52: 0.1 | D52: 100 | F52: 0 | G52: =D52 -> 100 | H52: 0
B53: ＷＤ | C53: 0.1 | D53: 180000 | F53: 0 | G53: =ROUND(D53*$K$9,0) -> 144000 | H53: 0
B55: 下着・インナー（モカ・黒） | C55: 0.1 | D55: 34000 | F55: 0 | G55: =ROUND(D55*$K$9,0) -> 27200 | H55: =E55*G55 -> 0
B56: 下着・ガードル（モカ・黒） | C56: 0.1 | D56: 34000 | F56: 0 | G56: =ROUND(D56*$K$9,0) -> 27200 | H56: 0
B57: 特注・３Ｌと４Ｌ | C57: 0.1 | D57: 3000 | F57: 0 | G57: =D57 -> 3000 | H57: 0
B58: 特注・５Ｌと６Ｌ | C58: 0.1 | D58: 6000 | F58: 0 | G58: =D58 -> 6000 | H58: 0
B59: ブラジャー・メッシュ | C59: 0.1 | D59: 32000 | F59: 0 | G59: =ROUND(D59*$K$9,0) -> 25600 | H59: 0
B60: ブラジャー・サテン（モ・黒） | C60: 0.1 | D60: 38000 | F60: 0 | G60: =ROUND(D60*$K$9,0) -> 30400 | H60: 0
B61: 特注・ブラ９０～ | C61: 0.1 | D61: 3000 | F61: 0 | G61: =D61 -> 3000 | H61: 0
B62: 特注・Ｇ～ | C62: 0.1 | D62: 5000 | F62: 0 | G62: =D62 -> 5000 | H62: 0
B63: ショーツ ～６Ｌ | C63: 0.1 | D63: 5200 | F63: 0 | G63: =ROUND(D63*$K$9,0) -> 4160 | H63: 0
B64: 特注・ショーツ５Ｌ～ | C64: 0.1 | D64: 600 | F64: 0 | G64: =D64 -> 600 | H64: 0
C65: 0.1
B66: 交換ｶｰﾄﾘｯｼﾞIEC-12000 | C66: 0.1 | D66: 10000 | F66: 0 | G66: =D66 -> 10000 | H66: =E66*G66 -> 0
B67: ｴｲｼﾞﾚｽﾊﾟﾜｰお試しパック | C67: 0.08 | D67: 1750 | F67: 0 | G67: 1750 | H67: 0
B68: 備品１・金額手入力 | C68: 0.1 | F68: 0 | G68: 0 | H68: 0
B69: 備品２・金額手入力 | C69: 0.1 | F69: 0 | G69: 0 | H69: 0
B70: 送料・九州～5kg | C70: 0.1 | D70: 710 | F70: 0 | G70: 710 | H70: 0
B71: 送料・中国～5kg | C71: 0.1 | D71: 710 | F71: 0 | G71: 710 | H71: 0
B72: 送料・四国～5kg | C72: 0.1 | D72: 920 | F72: 0 | G72: 920 | H72: 0
B73: 送料・関西～5kg | C73: 0.1 | D73: 920 | F73: 0 | G73: 920 | H73: 0
B74: 送料・中部～5kg | C74: 0.1 | D74: 1040 | F74: 0 | G74: 1040 | H74: 0
B75: 送料・北陸～5kg | C75: 0.1 | D75: 1040 | F75: 0 | G75: 1040 | H75: 0
B76: 送料・信越～5kg | C76: 0.1 | D76: 1180 | F76: 0 | G76: 1180 | H76: 0
B77: 送料・関東～5kg | C77: 0.1 | D77: 1180 | F77: 0 | G77: 1180 | H77: 0
B78: 送料・東北～5kg | C78: 0.1 | D78: 1460 | F78: 0 | G78: 1460 | H78: 0
B79: 送料（金額手入力） | C79: 0.1 | D79: 1000 | F79: 0 | G79: 1000 | H79: 0

Sheet 送料
A1: 送 料 価 格 表
A3: ２０２３年 （令和５年） ５月 １日 改正 | D3: ※価格は全て税別 | G3: Ｎｏ.1
B5: 地 域 | C5: ｻｲｽﾞ 3辺合計 | D5: 80cmまで | E5: 100cmまで | F5: 120cmまで | G5: 160cmまで
C6: 重さ | D6: 5kg以内 | E6: 10kg以内 | F6: 15kg以内 | G6: 25kg以内
A7: 99600070 | B7: 九州内 （熊本・福岡・佐賀・ 大分・長崎・宮崎・鹿児島） | D7: 710 | E7: 790 | F7: 1180 | G7: 1380
A8: 99600080 | B8: 中国 （岡山・広島・山口・鳥取・島根） | D8: 710 | E8: 790 | F8: 1180 | G8: 1380
A9: 99600090 | B9: 四国 （香川・徳島・愛媛・高知） | D9: 920 | E9: 1000 | F9: 1390 | G9: 1590
A10: 99600100 | B10: 関西 (大阪・京都・滋賀・奈良・ 和歌山・兵庫） | D10: 920 | E10: 1000 | F10: 1390 | G10: 1590
A11: 99600110 | B11: 中部 （三重・愛知・静岡・岐阜） | D11: 1040 | E11: 1120 | F11: 1410 | G11: 1610
A12: 99600120 | B12: 北陸 （富山・石川・福井） | D12: 1040 | E12: 1120 | F12: 1410 | G12: 1610
A13: 99600130 | B13: 信越 （新潟・長野） | D13: 1180 | E13: 1260 | F13: 1650 | G13: 1850
A14: 99600140 | B14: 関東 （東京・神奈川・千葉・ 群馬・埼玉・茨城・栃木・山梨） | D14: 1180 | E14: 1260 | F14: 1650 | G14: 1850
A15: 99600160 | B15: 東北 （宮城・山形・福島・青森・ 秋田・岩手） | D15: 1460 | E15: 1540 | F15: 1930 | G15: 2130
B16: ｻｲｽﾞ・3辺合計 重 さ
A17: 99600170 | B17: 北海道
A18: 99600180 | B18: 沖縄
A19: 99600190 | B19: クール便
A24: 時間指定は５つの時間帯となります。
A25: 午前中 ・ 14時～16時 ・ 16時～18時 ・ 18時～20時 ・ 19時～21時
A27: ※目安として
B28: パーフェクトクリーナー・１本 ⇒ １,０００ｇ | D28: 健康食品 １点 ⇒ 約２５０ｇ
B29: もりの泉 １本 ⇒ ９００ｇ | D29: シャンプー類 １点 ⇒ ４８０g
B30: ルイボスティー １個 ⇒ ５００ｇ | D30: 化粧品 １点 ⇒ ２００ｇ
A32: 2023.04.18 | B32: 株式会社マスタワールド
G33: WX-0022B

Sheet 北海道沖縄 (hidden)
B1: 60cmまで | C1: 80cmまで | D1: 100cmまで | E1: 120cmまで | F1: 140cmまで | G1: 160cmまで
B2: ２ｋｇ以内 | C2: ５ｋｇ以内 | D2: １０ｋｇ以内 | E2: １５ｋｇ以内 | F2: ２０ｋｇ以内 | G2: ２５ｋｇ以内
B3: =I3*1.1 -> 2442 | C3: 2728 | D3: 3036 | E3: 3355 | F3: 3696 | G3: 4015 | I3: 2220 | J3: 2480 | K3: 2760 | L3: 3050 | M3: 3360 | N3: 3650
B4: 1430 | C4: 2046 | D4: 2684 | E4: 3333 | F4: 4004 | G4: 4653 | I4: 1300 | J4: 1860 | K4: 2440 | L4: 3030 | M4: 3640 | N4: 4230
B5: =I5*1.1 -> 220 | C5: =J5*1.1 -> 220 | D5: =K5*1.1 -> 330 | E5: =L5*1.1 -> 660 | I5: 200 | J5: 200 | K5: 300 | L5: 600
B9: 60cmまで | C9: 80cmまで | D9: 100cmまで | E9: 120cmまで | F9: 140cmまで | G9: 160cmまで
B10: ２ｋｇ以内 | C10: ５ｋｇ以内 | D10: １０ｋｇ以内 | E10: １５ｋｇ以内 | F10: ２０ｋｇ以内 | G10: ２５ｋｇ以内
B11: 2220 | C11: 2480 | D11: 2760 | E11: 3050 | F11: 3360 | G11: 3650
B12: 1300 | C12: 1860 | D12: 2440 | E12: 3030 | F12: 3640 | G12: 4230
B13: 200 | C13: 200 | D13: 300 | E13: 600

Sheet コレクトと時間帯 (hidden)
A1: コレクト手数料 （1回の品代金が最大３０万までです。）
A2: 品代金 | C2: 1万円未満 | D2: 1万円以上3万円未満 | E2: 3万円以上10万円未満 | F2: 10万円以上30万円以下
A3: ※代引き手数料を含む 合計金額が品代金です | C3: 330 | D3: 440 | E3: 660 | F3: 1100
A7: 時間指定は５つの時間帯となります。
A8: 午前中 ・ 14時～16時 ・ 16時～18時 ・ 18時～20時 ・ 19時～21時
